Workbook

Sheet P&L to Bud
BB1: TOTAL
F2: Jan 23 | H2: Budget | J2: $ Over Budget | L2: % of Budget | N2: Feb 23 | P2: Budget | R2: $ Over Budget | T2: % of Budget | V2: Mar 23 | X2: Budget | Z2: $ Over Budget | AB2: % of Budget | AD2: Apr 23 | AF2: Budget | AH2: $ Over Budget | AJ2: % of Budget | AL2: May 23 | AN2: Budget | AP2: $ Over Budget | AR2: % of Budget | AT2: Jun 23 | AV2: Budget | AX2: $ Over Budget | AZ2: % of Budget | BB2: Jan - Jun 23 | BD2: Budget | BF2: $ Over Budget | BH2: % of Budget
B3: Ordinary Income/Expense
D4: Income
E5: 40000 · Member Dues and Fees | F5: 66850 | H5: 66250 | J5: =ROUND((F5-H5),5) -> 600 | L5: =ROUND(IF(H5=0, IF(F5=0, 0, 1), F5/H5),5) -> 1.00906 | N5: 65350 | P5: 66250 | R5: =ROUND((N5-P5),5) -> -900 | T5: =ROUND(IF(P5=0, IF(N5=0, 0, 1), N5/P5),5) -> 0.98642 | V5: 71300 | X5: 66250 | Z5: =ROUND((V5-X5),5) -> 5050 | AB5: =ROUND(IF(X5=0, IF(V5=0, 0, 1), V5/X5),5) -> 1.07623 | AD5: 64050 | AF5: 66250 | AH5: =ROUND((AD5-AF5),5) -> -2200 | AJ5: =ROUND(IF(AF5=0, IF(AD5=0, 0, 1), AD5/AF5),5) -> 0.96679 | AL5: 71800 | AN5: 66250 | AP5: =ROUND((AL5-AN5),5) -> 5550 | AR5: =ROUND(IF(AN5=0, IF(AL5=0, 0, 1), AL5/AN5),5) -> 1.08377 | AT5: 70300 | AV5: 66250 | AX5: =ROUND((AT5-AV5),5) -> 4050 | AZ5: =ROUND(IF(AV5=0, IF(AT5=0, 0, 1), AT5/AV5),5) -> 1.06113 | BB5: =ROUND(F5+N5+V5+AD5+AL5+AT5,5) -> 409650 | BD5: =ROUND(H5+P5+X5+AF5+AN5+AV5,5) -> 397500 | BF5: =ROUND((BB5-BD5),5) -> 12150 | BH5: =ROUND(IF(BD5=0, IF(BB5=0, 0, 1), BB5/BD5),5) -> 1.03057
E6: 40100 · Meal Sales | F6: 41371 | H6: 19000 | J6: 22371 | L6: 2.17742 | N6: 45613 | P6: 33000 | R6: 12613 | T6: 1.38221 | V6: 55366 | X6: 63801 | Z6: -8435 | AB6: 0.86779 | AD6: 86873 | AF6: 83300 | AH6: 3573 | AJ6: 1.04289 | AL6: 83229 | AN6: 80714 | AP6: 2515 | AR6: 1.03116 | AT6: 102719 | AV6: 92182 | AX6: 10537 | AZ6: 1.11431 | BB6: 415171 | BD6: 371997 | BF6: 43174 | BH6: 1.11606
E7: 40200 · Beverage Sales | F7: 8739 | H7: 5063 | J7: 3676 | L7: 1.72605 | N7: 6249 | P7: 6289 | R7: -40 | T7: 0.99364 | V7: 9893 | X7: 9000 | Z7: 893 | AB7: 1.09922 | AD7: 23777 | AF7: 13000 | AH7: 10777 | AJ7: 1.829 | AL7: 7710 | AN7: 13000 | AP7: -5290 | AR7: 0.59308 | AT7: 11378 | AV7: 16000 | AX7: -4622 | AZ7: 0.71113 | BB7: 67746 | BD7: 62352 | BF7: 5394 | BH7: 1.08651
E8: 40300 · Service Fees | F8: 4330 | H8: 578 | J8: 3752 | L8: 7.49135 | N8: 3047 | P8: 539 | R8: 2508 | T8: 5.65306 | V8: 3287 | X8: 6894 | Z8: -3607 | AB8: 0.47679 | AD8: 12027 | AF8: 9006 | AH8: 3021 | AJ8: 1.33544 | AL8: 4766 | AN8: 9025 | AP8: -4259 | AR8: 0.52809 | AT8: 9385 | AV8: 9388 | AX8: -3 | AZ8: 0.99968 | BB8: 36842 | BD8: 35430 | BF8: 1412 | BH8: 1.03985
E9: 40400 · Rental Income | F9: 0 | H9: 0 | J9: 0 | L9: 0 | N9: 0 | P9: 152 | R9: -152 | T9: 0 | V9: 0 | X9: 2600 | Z9: -2600 | AB9: 0 | AD9: 3132 | AF9: 2600 | AH9: 532 | AJ9: 1.20462 | AL9: 140 | AN9: 2600 | AP9: -2460 | AR9: 0.05385 | AT9: 15449 | AV9: 2600 | AX9: 12849 | AZ9: 5.94192 | BB9: 18721 | BD9: 10552 | BF9: 8169 | BH9: 1.77417
E10: 40800 · Other Income | F10: 675 | H10: 168 | J10: 507 | L10: 4.01786 | N10: 300 | P10: 919 | R10: -619 | T10: 0.32644 | V10: 71 | X10: 553 | Z10: -482 | AB10: 0.12839 | AD10: 430 | AF10: 670 | AH10: -240 | AJ10: 0.64179 | AL10: 230 | AN10: 757 | AP10: -527 | AR10: 0.30383 | AT10: 165 | AV10: 1402 | AX10: -1237 | AZ10: 0.11769 | BB10: 1871 | BD10: 4469 | BF10: -2598 | BH10: 0.41866
D11: Total Income | F11: =ROUND(SUM(F4:F10),5) -> 121965 | H11: =ROUND(SUM(H4:H10),5) -> 91059 | J11: 30906 | L11: 1.33941 | N11: =ROUND(SUM(N4:N10),5) -> 120559 | P11: =ROUND(SUM(P4:P10),5) -> 107149 | R11: 13410 | T11: 1.12515 | V11: =ROUND(SUM(V4:V10),5) -> 139917 | X11: =ROUND(SUM(X4:X10),5) -> 149098 | Z11: -9181 | AB11: 0.93842 | AD11: =ROUND(SUM(AD4:AD10),5) -> 190289 | AF11: =ROUND(SUM(AF4:AF10),5) -> 174826 | AH11: 15463 | AJ11: 1.08845 | AL11: =ROUND(SUM(AL4:AL10),5) -> 167875 | AN11: =ROUND(SUM(AN4:AN10),5) -> 172346 | AP11: -4471 | AR11: 0.97406 | AT11: =ROUND(SUM(AT4:AT10),5) -> 209396 | AV11: =ROUND(SUM(AV4:AV10),5) -> 187822 | AX11: 21574 | AZ11: 1.11486 | BB11: 950001 | BD11: 882300 | BF11: 67701 | BH11: 1.07673
C12: Gross Profit | F12: =F11 -> 121965 | H12: =H11 -> 91059 | J12: 30906 | L12: 1.33941 | N12: =N11 -> 120559 | P12: =P11 -> 107149 | R12: 13410 | T12: 1.12515 | V12: =V11 -> 139917 | X12: =X11 -> 149098 | Z12: -9181 | AB12: 0.93842 | AD12: =AD11 -> 190289 | AF12: =AF11 -> 174826 | AH12: 15463 | AJ12: 1.08845 | AL12: =AL11 -> 167875 | AN12: =AN11 -> 172346 | AP12: -4471 | AR12: 0.97406 | AT12: =AT11 -> 209396 | AV12: =AV11 -> 187822 | AX12: 21574 | AZ12: 1.11486 | BB12: 950001 | BD12: 882300 | BF12: 67701 | BH12: 1.07673
D13: Expense
E14: 55100 · Food Purchased | F14: 16506 | H14: 17020 | J14: =ROUND((F14-H14),5) -> -514 | L14: =ROUND(IF(H14=0, IF(F14=0, 0, 1), F14/H14),5) -> 0.9698 | N14: 18293 | P14: 20000 | R14: =ROUND((N14-P14),5) -> -1707 | T14: =ROUND(IF(P14=0, IF(N14=0, 0, 1), N14/P14),5) -> 0.91465 | V14: 21249 | X14: 22000 | Z14: =ROUND((V14-X14),5) -> -751 | AB14: =ROUND(IF(X14=0, IF(V14=0, 0, 1), V14/X14),5) -> 0.96586 | AD14: 27673 | AF14: 27000 | AH14: =ROUND((AD14-AF14),5) -> 673 | AJ14: =ROUND(IF(AF14=0, IF(AD14=0, 0, 1), AD14/AF14),5) -> 1.02493 | AL14: 26099 | AN14: 27000 | AP14: =ROUND((AL14-AN14),5) -> -901 | AR14: =ROUND(IF(AN14=0, IF(AL14=0, 0, 1), AL14/AN14),5) -> 0.96663 | AT14: 27306 | AV14: 28000 | AX14: =ROUND((AT14-AV14),5) -> -694 | AZ14: =ROUND(IF(AV14=0, IF(AT14=0, 0, 1), AT14/AV14),5) -> 0.97521 | BB14: =ROUND(F14+N14+V14+AD14+AL14+AT14,5) -> 137126 | BD14: =ROUND(H14+P14+X14+AF14+AN14+AV14,5) -> 141020 | BF14: =ROUND((BB14-BD14),5) -> -3894 | BH14: =ROUND(IF(BD14=0, IF(BB14=0, 0, 1), BB14/BD14),5) -> 0.97239
E15: 55200 · Beverages | F15: 12326 | H15: 4051 | J15: 8275 | L15: 3.04271 | N15: 5382 | P15: 7805 | R15: -2423 | T15: 0.68956 | V15: 10200 | X15: 12716 | Z15: -2516 | AB15: 0.80214 | AD15: 22493 | AF15: 16643 | AH15: 5850 | AJ15: 1.3515 | AL15: 20126 | AN15: 11828 | AP15: 8298 | AR15: 1.70156 | AT15: 13350 | AV15: 15100 | AX15: -1750 | AZ15: 0.88411 | BB15: 83877 | BD15: 68143 | BF15: 15734 | BH15: 1.2309
E16: 55300 · Kitchen Employee Expense | F16: 31159 | H16: 30332 | J16: 827 | L16: 1.02726 | N16: 31421 | P16: 30332 | R16: 1089 | T16: 1.0359 | V16: 29671 | X16: 30332 | Z16: -661 | AB16: 0.97821 | AD16: 31990 | AF16: 30332 | AH16: 1658 | AJ16: 1.05466 | AL16: 37353 | AN16: 30332 | AP16: 7021 | AR16: 1.23147 | AT16: 31704 | AV16: 30332 | AX16: 1372 | AZ16: 1.04523 | BB16: 193298 | BD16: 181992 | BF16: 11306 | BH16: 1.06212
E17: 55400 · Front of House Employee Expense | F17: 24021 | H17: 30425 | J17: -6404 | L17: 0.78952 | N17: 23094 | P17: 30425 | R17: -7331 | T17: 0.75905 | V17: 24415 | X17: 30425 | Z17: -6010 | AB17: 0.80247 | AD17: 30535 | AF17: 30425 | AH17: 110 | AJ17: 1.00362 | AL17: 41005 | AN17: 30425 | AP17: 10580 | AR17: 1.34774 | AT17: 30573 | AV17: 30425 | AX17: 148 | AZ17: 1.00486 | BB17: 173643 | BD17: 182550 | BF17: -8907 | BH17: 0.95121
E18: 55500 · Kitchen Supplies | F18: 1058 | H18: 1098 | J18: -40 | L18: 0.96357 | N18: 464 | P18: 1098 | R18: -634 | T18: 0.42259 | V18: 1431 | X18: 1098 | Z18: 333 | AB18: 1.30328 | AD18: 708 | AF18: 1098 | AH18: -390 | AJ18: 0.64481 | AL18: 1035 | AN18: 1098 | AP18: -63 | AR18: 0.94262 | AT18: 1130 | AV18: 1098 | AX18: 32 | AZ18: 1.02914 | BB18: 5826 | BD18: 6588 | BF18: -762 | BH18: 0.88434
E19: 55800 · Entertainment | F19: 654 | H19: 5426 | J19: -4772 | L19: 0.12053 | N19: 4854 | P19: 5426 | R19: -572 | T19: 0.89458 | V19: 2054 | X19: 5426 | Z19: -3372 | AB19: 0.37855 | AD19: 3454 | AF19: 5426 | AH19: -1972 | AJ19: 0.63656 | AL19: 7504 | AN19: 5426 | AP19: 2078 | AR19: 1.38297 | AT19: 10504 | AV19: 5426 | AX19: 5078 | AZ19: 1.93586 | BB19: 29024 | BD19: 32556 | BF19: -3532 | BH19: 0.89151
E20: 60000 · General & Admin Employee Exp | F20: 24908 | H20: 26572 | J20: -1664 | L20: 0.93738 | N20: 24328 | P20: 26572 | R20: -2244 | T20: 0.91555 | V20: 24203 | X20: 26572 | Z20: -2369 | AB20: 0.91085 | AD20: 24203 | AF20: 26572 | AH20: -2369 | AJ20: 0.91085 | AL20: 25727 | AN20: 26572 | AP20: -845 | AR20: 0.9682 | AT20: 24203 | AV20: 26572 | AX20: -2369 | AZ20: 0.91085 | BB20: 147572 | BD20: 159432 | BF20: -11860 | BH20: 0.92561
E21: 60700 · Advertising & Promotional | F21: 887 | H21: 2065 | J21: -1178 | L21: 0.42954 | N21: 1139 | P21: 2065 | R21: -926 | T21: 0.55157 | V21: 905 | X21: 2065 | Z21: -1160 | AB21: 0.43826 | AD21: 607 | AF21: 2065 | AH21: -1458 | AJ21: 0.29395 | AL21: 4322 | AN21: 2065 | AP21: 2257 | AR21: 2.09298 | AT21: 1767 | AV21: 2065 | AX21: -298 | AZ21: 0.85569 | BB21: 9627 | BD21: 12390 | BF21: -2763 | BH21: 0.777
E22: 62020 · Dues & Subscriptions | F22: 338 | H22: 85 | J22: 253 | L22: 3.97647 | N22: 0 | P22: 85 | R22: -85 | T22: 0 | V22: 0 | X22: 85 | Z22: -85 | AB22: 0 | AD22: 401 | AF22: 85 | AH22: 316 | AJ22: 4.71765 | AL22: 0 | AN22: 85 | AP22: -85 | AR22: 0 | AT22: 0 | AV22: 85 | AX22: -85 | AZ22: 0 | BB22: 739 | BD22: 510 | BF22: 229 | BH22: 1.44902
E23: 62030 · Equipment Rental | F23: 333 | H23: 2101 | J23: -1768 | L23: 0.1585 | N23: 458 | P23: 2101 | R23: -1643 | T23: 0.21799 | V23: 391 | X23: 2101 | Z23: -1710 | AB23: 0.1861 | AD23: 4932 | AF23: 2101 | AH23: 2831 | AJ23: 2.34745 | AL23: 2203 | AN23: 2101 | AP23: 102 | AR23: 1.04855 | AT23: 9888 | AV23: 2101 | AX23: 7787 | AZ23: 4.70633 | BB23: 18205 | BD23: 12606 | BF23: 5599 | BH23: 1.44415
E24: 62040 · Repairs & Maintenance | F24: 5558 | H24: 6782 | J24: -1224 | L24: 0.81952 | N24: 8028 | P24: 6782 | R24: 1246 | T24: 1.18372 | V24: 2888 | X24: 6782 | Z24: -3894 | AB24: 0.42583 | AD24: 8601 | AF24: 6782 | AH24: 1819 | AJ24: 1.26821 | AL24: 5057 | AN24: 6782 | AP24: -1725 | AR24: 0.74565 | AT24: 5094 | AV24: 6782 | AX24: -1688 | AZ24: 0.75111 | BB24: 35226 | BD24: 40692 | BF24: -5466 | BH24: 0.86567
E25: 62100 · Auto related | F25: 51 | H25: 64 | J25: -13 | L25: 0.79688 | N25: 114 | P25: 64 | R25: 50 | T25: 1.78125 | V25: 0 | X25: 64 | Z25: -64 | AB25: 0 | AD25: 170 | AF25: 64 | AH25: 106 | AJ25: 2.65625 | AL25: 75 | AN25: 64 | AP25: 11 | AR25: 1.17188 | AT25: 80 | AV25: 64 | AX25: 16 | AZ25: 1.25 | BB25: 490 | BD25: 384 | BF25: 106 | BH25: 1.27604
E26: 62200 · Meals and Entertainment | F26: 3278 | H26: 60 | J26: 3218 | L26: 54.63333 | N26: 0 | P26: 60 | R26: -60 | T26: 0 | V26: 157 | X26: 60 | Z26: 97 | AB26: 2.61667 | AD26: 0 | AF26: 60 | AH26: -60 | AJ26: 0 | AL26: 0 | AN26: 60 | AP26: -60 | AR26: 0 | AT26: 0 | AV26: 60 | AX26: -60 | AZ26: 0 | BB26: 3435 | BD26: 360 | BF26: 3075 | BH26: 9.54167
E27: 62300 · Postage | F27: 0 | H27: 211 | J27: -211 | L27: 0 | N27: 676 | P27: 211 | R27: 465 | T27: 3.20379 | V27: 31 | X27: 211 | Z27: -180 | AB27: 0.14692 | AD27: 630 | AF27: 211 | AH27: 419 | AJ27: 2.98578 | AL27: 0 | AN27: 211 | AP27: -211 | AR27: 0 | AT27: 630 | AV27: 211 | AX27: 419 | AZ27: 2.98578 | BB27: 1967 | BD27: 1266 | BF27: 701 | BH27: 1.55371
E28: 62400 · Printing | F28: 1101 | H28: 160 | J28: 941 | L28: 6.88125 | N28: 0 | P28: 160 | R28: -160 | T28: 0 | V28: 378 | X28: 160 | Z28: 218 | AB28: 2.3625 | AD28: 0 | AF28: 160 | AH28: -160 | AJ28: 0 | AL28: 0 | AN28: 160 | AP28: -160 | AR28: 0 | AT28: 0 | AV28: 160 | AX28: -160 | AZ28: 0 | BB28: 1479 | BD28: 960 | BF28: 519 | BH28: 1.54063
E29: 62500 · Training | F29: 100 | H29: 325 | J29: -225 | L29: 0.30769 | N29: 850 | P29: 325 | R29: 525 | T29: 2.61538 | V29: 262 | X29: 325 | Z29: -63 | AB29: 0.80615 | AD29: 0 | AF29: 325 | AH29: -325 | AJ29: 0 | AL29: 0 | AN29: 325 | AP29: -325 | AR29: 0 | AT29: 0 | AV29: 325 | AX29: -325 | AZ29: 0 | BB29: 1212 | BD29: 1950 | BF29: -738 | BH29: 0.62154
E30: 63000 · Insurance | F30: 2782 | H30: 3923 | J30: -1141 | L30: 0.70915 | N30: 1417 | P30: 3923 | R30: -2506 | T30: 0.3612 | V30: -926 | X30: 3923 | Z30: -4849 | AB30: -0.23604 | AD30: 2786 | AF30: 3923 | AH30: -1137 | AJ30: 0.71017 | AL30: 2950 | AN30: 3923 | AP30: -973 | AR30: 0.75198 | AT30: 2806 | AV30: 3923 | AX30: -1117 | AZ30: 0.71527 | BB30: 11815 | BD30: 23538 | BF30: -11723 | BH30: 0.50195
E31: 64000 · Supplies and Related | F31: 5637 | H31: 3487 | J31: 2150 | L31: 1.61658 | N31: 4729 | P31: 3487 | R31: 1242 | T31: 1.35618 | V31: 2052 | X31: 3487 | Z31: -1435 | AB31: 0.58847 | AD31: 2219 | AF31: 3487 | AH31: -1268 | AJ31: 0.63636 | AL31: 4883 | AN31: 3487 | AP31: 1396 | AR31: 1.40034 | AT31: 2851 | AV31: 3487 | AX31: -636 | AZ31: 0.81761 | BB31: 22371 | BD31: 20922 | BF31: 1449 | BH31: 1.06926
E32: 65000 · Professional Services | F32: 4557 | H32: 3015 | J32: 1542 | L32: 1.51144 | N32: 4038 | P32: 3015 | R32: 1023 | T32: 1.3393 | V32: 3247 | X32: 3015 | Z32: 232 | AB32: 1.07695 | AD32: 2706 | AF32: 3015 | AH32: -309 | AJ32: 0.89751 | AL32: 3011 | AN32: 3015 | AP32: -4 | AR32: 0.99867 | AT32: 3699 | AV32: 3015 | AX32: 684 | AZ32: 1.22687 | BB32: 21258 | BD32: 18090 | BF32: 3168 | BH32: 1.17512
E33: 65050 · Other Outside Services | F33: 322 | H33: 2579 | J33: -2257 | L33: 0.12485 | N33: 971 | P33: 2579 | R33: -1608 | T33: 0.3765 | V33: 1214 | X33: 2579 | Z33: -1365 | AB33: 0.47073 | AD33: 1401 | AF33: 2579 | AH33: -1178 | AJ33: 0.54323 | AL33: 1428 | AN33: 2579 | AP33: -1151 | AR33: 0.5537 | AT33: 1680 | AV33: 2579 | AX33: -899 | AZ33: 0.65142 | BB33: 7016 | BD33: 15474 | BF33: -8458 | BH33: 0.45341
E34: 66000 · Bank and Other Service Charges | F34: 462 | H34: 290 | J34: 172 | L34: 1.5931 | N34: 252 | P34: 290 | R34: -38 | T34: 0.86897 | V34: 258 | X34: 290 | Z34: -32 | AB34: 0.88966 | AD34: 266 | AF34: 290 | AH34: -24 | AJ34: 0.91724 | AL34: 285 | AN34: 290 | AP34: -5 | AR34: 0.98276 | AT34: 293 | AV34: 290 | AX34: 3 | AZ34: 1.01034 | BB34: 1816 | BD34: 1740 | BF34: 76 | BH34: 1.04368
E35: 67000 · Taxes and Fees | F35: 0 | H35: 0 | J35: 0 | L35: 0 | N35: 7112 | P35: 7000 | R35: 112 | T35: 1.016 | V35: 0 | X35: 0 | Z35: 0 | AB35: 0 | AD35: 0 | AF35: 0 | AH35: 0 | AJ35: 0 | AL35: 654 | AN35: 500 | AP35: 154 | AR35: 1.308 | AT35: 2095 | AV35: 1000 | AX35: 1095 | AZ35: 2.095 | BB35: 9861 | BD35: 8500 | BF35: 1361 | BH35: 1.16012
E36: 68000 · Utilities | F36: 5149 | H36: 5801 | J36: -652 | L36: 0.88761 | N36: 5827 | P36: 5801 | R36: 26 | T36: 1.00448 | V36: 5066 | X36: 5801 | Z36: -735 | AB36: 0.8733 | AD36: 4311 | AF36: 5801 | AH36: -1490 | AJ36: 0.74315 | AL36: 5686 | AN36: 5801 | AP36: -115 | AR36: 0.98018 | AT36: 8059 | AV36: 5801 | AX36: 2258 | AZ36: 1.38924 | BB36: 34098 | BD36: 34806 | BF36: -708 | BH36: 0.97966
D37: Total Expense | F37: =ROUND(SUM(F13:F36),5) -> 141187 | H37: =ROUND(SUM(H13:H36),5) -> 145872 | J37: -4685 | L37: 0.96788 | N37: =ROUND(SUM(N13:N36),5) -> 143447 | P37: =ROUND(SUM(P13:P36),5) -> 159606 | R37: -16159 | T37: 0.89876 | V37: =ROUND(SUM(V13:V36),5) -> 129146 | X37: =ROUND(SUM(X13:X36),5) -> 159517 | Z37: -30371 | AB37: 0.80961 | AD37: =ROUND(SUM(AD13:AD36),5) -> 170086 | AF37: =ROUND(SUM(AF13:AF36),5) -> 168444 | AH37: 1642 | AJ37: 1.00975 | AL37: =ROUND(SUM(AL13:AL36),5) -> 189403 | AN37: =ROUND(SUM(AN13:AN36),5) -> 164129 | AP37: 25274 | AR37: 1.15399 | AT37: =ROUND(SUM(AT13:AT36),5) -> 177712 | AV37: =ROUND(SUM(AV13:AV36),5) -> 168901 | AX37: 8811 | AZ37: 1.05217 | BB37: 950981 | BD37: 966469 | BF37: -15488 | BH37: 0.98397
B38: Net Ordinary Income | F38: =ROUND(F3+F12-F37,5) -> -19222 | H38: =ROUND(H3+H12-H37,5) -> -54813 | J38: 35591 | L38: 0.35068 | N38: =ROUND(N3+N12-N37,5) -> -22888 | P38: =ROUND(P3+P12-P37,5) -> -52457 | R38: 29569 | T38: 0.43632 | V38: =ROUND(V3+V12-V37,5) -> 10771 | X38: =ROUND(X3+X12-X37,5) -> -10419 | Z38: 21190 | AB38: -1.03378 | AD38: =ROUND(AD3+AD12-AD37,5) -> 20203 | AF38: =ROUND(AF3+AF12-AF37,5) -> 6382 | AH38: 13821 | AJ38: 3.16562 | AL38: =ROUND(AL3+AL12-AL37,5) -> -21528 | AN38: =ROUND(AN3+AN12-AN37,5) -> 8217 | AP38: -29745 | AR38: -2.61993 | AT38: =ROUND(AT3+AT12-AT37,5) -> 31684 | AV38: =ROUND(AV3+AV12-AV37,5) -> 18921 | AX38: 12763 | AZ38: 1.67454 | BB38: -980 | BD38: -84169 | BF38: 83189 | BH38: 0.01164
B39: Other Income/Expense
C40: Other Income
D41: 70001 · Interest & Dividend Income | F41: 1 | H41: 1 | J41: =ROUND((F41-H41),5) -> 0 | L41: =ROUND(IF(H41=0, IF(F41=0, 0, 1), F41/H41),5) -> 1 | N41: 0 | P41: 1 | R41: =ROUND((N41-P41),5) -> -1 | T41: =ROUND(IF(P41=0, IF(N41=0, 0, 1), N41/P41),5) -> 0 | V41: 0 | X41: 1 | Z41: =ROUND((V41-X41),5) -> -1 | AB41: =ROUND(IF(X41=0, IF(V41=0, 0, 1), V41/X41),5) -> 0 | AD41: 0 | AF41: 1 | AH41: =ROUND((AD41-AF41),5) -> -1 | AJ41: =ROUND(IF(AF41=0, IF(AD41=0, 0, 1), AD41/AF41),5) -> 0 | AL41: 0 | AN41: 1 | AP41: =ROUND((AL41-AN41),5) -> -1 | AR41: =ROUND(IF(AN41=0, IF(AL41=0, 0, 1), AL41/AN41),5) -> 0 | AT41: 1 | AV41: 1 | AX41: =ROUND((AT41-AV41),5) -> 0 | AZ41: =ROUND(IF(AV41=0, IF(AT41=0, 0, 1), AT41/AV41),5) -> 1 | BB41: =ROUND(F41+N41+V41+AD41+AL41+AT41,5) -> 2 | BD41: =ROUND(H41+P41+X41+AF41+AN41+AV41,5) -> 6 | BF41: =ROUND((BB41-BD41),5) -> -4 | BH41: =ROUND(IF(BD41=0, IF(BB41=0, 0, 1), BB41/BD41),5) -> 0.33333
D42: 70011 · Assessment Fee Income | F42: 125 | H42: 125 | J42: =ROUND((F42-H42),5) -> 0 | L42: =ROUND(IF(H42=0, IF(F42=0, 0, 1), F42/H42),5) -> 1 | N42: 125 | P42: 125 | R42: =ROUND((N42-P42),5) -> 0 | T42: =ROUND(IF(P42=0, IF(N42=0, 0, 1), N42/P42),5) -> 1 | V42: 125 | X42: 125 | Z42: =ROUND((V42-X42),5) -> 0 | AB42: =ROUND(IF(X42=0, IF(V42=0, 0, 1), V42/X42),5) -> 1 | AD42: 125 | AF42: 125 | AH42: =ROUND((AD42-AF42),5) -> 0 | AJ42: =ROUND(IF(AF42=0, IF(AD42=0, 0, 1), AD42/AF42),5) -> 1 | AL42: 125 | AN42: 125 | AP42: =ROUND((AL42-AN42),5) -> 0 | AR42: =ROUND(IF(AN42=0, IF(AL42=0, 0, 1), AL42/AN42),5) -> 1 | AT42: 125 | AV42: 125 | AX42: =ROUND((AT42-AV42),5) -> 0 | AZ42: =ROUND(IF(AV42=0, IF(AT42=0, 0, 1), AT42/AV42),5) -> 1 | BB42: =ROUND(F42+N42+V42+AD42+AL42+AT42,5) -> 750 | BD42: =ROUND(H42+P42+X42+AF42+AN42+AV42,5) -> 750 | BF42: =ROUND((BB42-BD42),5) -> 0 | BH42: =ROUND(IF(BD42=0, IF(BB42=0, 0, 1), BB42/BD42),5) -> 1
D43: 70012 · Other Member Contributions | F43: 0 | H43: 0 | J43: =ROUND((F43-H43),5) -> 0 | L43: =ROUND(IF(H43=0, IF(F43=0, 0, 1), F43/H43),5) -> 0 | N43: 850 | P43: 0 | R43: =ROUND((N43-P43),5) -> 850 | T43: =ROUND(IF(P43=0, IF(N43=0, 0, 1), N43/P43),5) -> 1 | V43: 1200 | X43: 0 | Z43: =ROUND((V43-X43),5) -> 1200 | AB43: =ROUND(IF(X43=0, IF(V43=0, 0, 1), V43/X43),5) -> 1 | AD43: -85 | AF43: 0 | AH43: =ROUND((AD43-AF43),5) -> -85 | AJ43: =ROUND(IF(AF43=0, IF(AD43=0, 0, 1), AD43/AF43),5) -> 1 | AL43: 127475 | AN43: 81008 | AP43: =ROUND((AL43-AN43),5) -> 46467 | AR43: =ROUND(IF(AN43=0, IF(AL43=0, 0, 1), AL43/AN43),5) -> 1.57361 | AT43: 4450 | AV43: 0 | AX43: =ROUND((AT43-AV43),5) -> 4450 | AZ43: =ROUND(IF(AV43=0, IF(AT43=0, 0, 1), AT43/AV43),5) -> 1 | BB43: =ROUND(F43+N43+V43+AD43+AL43+AT43,5) -> 133890 | BD43: =ROUND(H43+P43+X43+AF43+AN43+AV43,5) -> 81008 | BF43: =ROUND((BB43-BD43),5) -> 52882 | BH43: =ROUND(IF(BD43=0, IF(BB43=0, 0, 1), BB43/BD43),5) -> 1.6528
B44: Net Other Income | F44: =ROUND(SUM(F40:F43),5) -> 126 | H44: =ROUND(SUM(H40:H43),5) -> 126 | J44: =ROUND((F44-H44),5) -> 0 | L44: =ROUND(IF(H44=0, IF(F44=0, 0, 1), F44/H44),5) -> 1 | N44: =ROUND(SUM(N40:N43),5) -> 975 | P44: =ROUND(SUM(P40:P43),5) -> 126 | R44: =ROUND((N44-P44),5) -> 849 | T44: =ROUND(IF(P44=0, IF(N44=0, 0, 1), N44/P44),5) -> 7.7381 | V44: =ROUND(SUM(V40:V43),5) -> 1325 | X44: =ROUND(SUM(X40:X43),5) -> 126 | Z44: =ROUND((V44-X44),5) -> 1199 | AB44: =ROUND(IF(X44=0, IF(V44=0, 0, 1), V44/X44),5) -> 10.51587 | AD44: =ROUND(SUM(AD40:AD43),5) -> 40 | AF44: =ROUND(SUM(AF40:AF43),5) -> 126 | AH44: =ROUND((AD44-AF44),5) -> -86 | AJ44: =ROUND(IF(AF44=0, IF(AD44=0, 0, 1), AD44/AF44),5) -> 0.31746 | AL44: =ROUND(SUM(AL40:AL43),5) -> 127600 | AN44: =ROUND(SUM(AN40:AN43),5) -> 81134 | AP44: =ROUND((AL44-AN44),5) -> 46466 | AR44: =ROUND(IF(AN44=0, IF(AL44=0, 0, 1), AL44/AN44),5) -> 1.57271 | AT44: =ROUND(SUM(AT40:AT43),5) -> 4576 | AV44: =ROUND(SUM(AV40:AV43),5) -> 126 | AX44: =ROUND((AT44-AV44),5) -> 4450 | AZ44: =ROUND(IF(AV44=0, IF(AT44=0, 0, 1), AT44/AV44),5) -> 36.31746 | BB44: =ROUND(F44+N44+V44+AD44+AL44+AT44,5) -> 134642 | BD44: =ROUND(H44+P44+X44+AF44+AN44+AV44,5) -> 81764 | BF44: =ROUND((BB44-BD44),5) -> 52878 | BH44: =ROUND(IF(BD44=0, IF(BB44=0, 0, 1), BB44/BD44),5) -> 1.64671
A45: Net Income (excluding depreciation) | F45: =ROUND(F38+#REF!,5) ->  | H45: =ROUND(H38+#REF!,5) ->  | J45: =ROUND((F45-H45),5) ->  | L45: =ROUND(IF(H45=0, IF(F45=0, 0, 1), F45/H45),5) ->  | N45: =ROUND(N38+#REF!,5) ->  | P45: =ROUND(P38+#REF!,5) ->  | R45: =ROUND((N45-P45),5) ->  | T45: =ROUND(IF(P45=0, IF(N45=0, 0, 1), N45/P45),5) ->  | V45: =ROUND(V38+#REF!,5) ->  | X45: =ROUND(X38+#REF!,5) ->  | Z45: =ROUND((V45-X45),5) ->  | AB45: =ROUND(IF(X45=0, IF(V45=0, 0, 1), V45/X45),5) ->  | AD45: =ROUND(AD38+#REF!,5) ->  | AF45: =ROUND(AF38+#REF!,5) ->  | AH45: =ROUND((AD45-AF45),5) ->  | AJ45: =ROUND(IF(AF45=0, IF(AD45=0, 0, 1), AD45/AF45),5) ->  | AL45: =ROUND(AL38+#REF!,5) ->  | AN45: =ROUND(AN38+#REF!,5) ->  | AP45: =ROUND((AL45-AN45),5) ->  | AR45: =ROUND(IF(AN45=0, IF(AL45=0, 0, 1), AL45/AN45),5) ->  | AT45: =AT38+AT44 -> 36260 | AV45: =AV38+AV44 -> 19047 | AX45: =ROUND((AT45-AV45),5) -> 17213 | AZ45: =ROUND(IF(AV45=0, IF(AT45=0, 0, 1), AT45/AV45),5) -> 1.90371 | BB45: =BB38+BB44 -> 133662 | BD45: =BD38+BD44 -> -2405 | BF45: =ROUND((BB45-BD45),5) -> 136067 | BH45: =ROUND(IF(BD45=0, IF(BB45=0, 0, 1), BB45/BD45),5) -> -55.57672

Sheet YTD Rev by Type
F1: Events- Member | H1: Events- Member Referral & Other | J1: Events-Club | L1: Member Services | N1: TOTAL
B2: Ordinary Income/Expense
D3: Income
E4: 40000 · Member Dues and Fees | F4: 0 | H4: 0 | J4: 0 | L4: 409650 | N4: =ROUND(SUM(F4:L4),5) -> 409650
E5: 40100 · Meal Sales | F5: 102529 | H5: 53186 | J5: 81474 | L5: 177982 | N5: 415171
E6: 40200 · Beverage Sales | F6: 9355 | H6: 6158 | J6: 40 | L6: 52193 | N6: 67746
E7: 40300 · Service Fees | F7: 16276 | H7: 6758 | J7: 182 | L7: 13627 | N7: 36843
E8: 40400 · Rental Income | F8: 8457 | H8: 10264 | J8: 0 | L8: 0 | N8: 18721
E9: 40800 · Other Income | F9: 375 | H9: 800 | J9: 0 | L9: 696 | N9: 1871
D10: Total Income | F10: =ROUND(SUM(F3:F9),5) -> 136992 | H10: =ROUND(SUM(H3:H9),5) -> 77166 | J10: =ROUND(SUM(J3:J9),5) -> 81696 | L10: =ROUND(SUM(L3:L9),5) -> 654148 | N10: 950002
C11: Prior Year Revenues | F11: 119887 | H11: 99778 | J11: 59065 | L11: 625670 | N11: 904400
C12: Change from Prior Year | F12: =F10-F11 -> 17105 | H12: =H10-H11 -> -22612 | J12: =J10-J11 -> 22631 | L12: =L10-L11 -> 28478 | N12: =N10-N11 -> 45602
C14: % of Total Revenues | F14: =F10/N10 -> 0.1442018017 | H14: =H10/N10 -> 0.08122719742 | J14: =J10/N10 -> 0.08599560843 | L14: =L10/N10 -> 0.6885753925 | N14: 1

Sheet June Rev by Type
F1: Events- Member | H1: Events- Member Referral & Other | J1: Events-Club | L1: Member Services | N1: TOTAL
B2: Ordinary Income/Expense
D3: Income
E4: 40000 · Member Dues and Fees | F4: 0 | H4: 0 | J4: 0 | L4: 70300 | N4: =ROUND(SUM(F4:L4),5) -> 70300
E5: 40100 · Meal Sales | F5: 41359 | H5: 13325 | J5: 17034 | L5: 31000 | N5: 102718
E6: 40200 · Beverage Sales | F6: 1015 | H6: 3250 | J6: 0 | L6: 7113 | N6: 11378
E7: 40300 · Service Fees | F7: 4530 | H7: 2785 | J7: 10 | L7: 2061 | N7: 9386
E8: 40400 · Rental Income | F8: 5185 | H8: 10264 | J8: 0 | L8: 0 | N8: 15449
E9: 40800 · Other Income | F9: 150 | H9: 0 | J9: 0 | L9: 15 | N9: 165
D10: Total Income | F10: =ROUND(SUM(F3:F9),5) -> 52239 | H10: =ROUND(SUM(H3:H9),5) -> 29624 | J10: =ROUND(SUM(J3:J9),5) -> 17044 | L10: =ROUND(SUM(L3:L9),5) -> 110489 | N10: 209396
C11: Prior Year Revenues | F11: 38752 | H11: 33370 | J11: 18183 | L11: 97202 | N11: 187507
C12: Change from Prior Year | F12: =F10-F11 -> 13487 | H12: =H10-H11 -> -3746 | J12: =J10-J11 -> -1139 | L12: =L10-L11 -> 13287 | N12: =N10-N11 -> 21889
C14: % of Total Revenues | F14: =F10/N10 -> 0.2494746796 | H14: =H10/N10 -> 0.1414735716 | J14: =J10/N10 -> 0.08139601521 | L14: =L10/N10 -> 0.5276557336 | N14: 1

Sheet Balance Sheet
E2: Jun 30, 23 | G2: Jun 30, 22 | I2: $ Change | K2: % Change
A3: ASSETS
B4: Current Assets
C5: Checking/Savings | E5: 455580 | G5: 310758 | I5: =ROUND((E5-G5),5) -> 144822 | K5: =ROUND(IF(E5=0, IF(G5=0, 0, SIGN(-G5)), IF(G5=0, SIGN(E5), (E5-G5)/ABS(G5))),5) -> 0.46603
C6: Accounts Receivable | E6: 250624 | G6: 278379 | I6: -27755 | K6: -0.0997
C7: Other Current Assets | E7: 75481 | G7: 66169 | I7: 9312 | K7: 0.14073
B8: Total Current Assets | E8: =ROUND(SUM(E4:E7),5) -> 781685 | G8: =ROUND(SUM(G4:G7),5) -> 655306 | I8: 126379 | K8: 0.19285
B9: Fixed Assets | E9: 1044878 | G9: 1062716 | I9: -17838 | K9: -0.01679
A10: TOTAL ASSETS | E10: =ROUND(E3+SUM(E8:E9),5) -> 1826563 | G10: =ROUND(G3+SUM(G8:G9),5) -> 1718022 | I10: 108541 | K10: 0.06318
A11: LIABILITIES & EQUITY
B12: Liabilities
C13: Current Liabilities
D14: Accounts Payable | E14: 38227 | G14: 118832 | I14: =ROUND((E14-G14),5) -> -80605 | K14: =ROUND(IF(E14=0, IF(G14=0, 0, SIGN(-G14)), IF(G14=0, SIGN(E14), (E14-G14)/ABS(G14))),5) -> -0.67831
D15: Other Current Liabilities | E15: 13392 | G15: 11400 | I15: 1992 | K15: 0.17474
C16: Total Current Liabilities | E16: =ROUND(SUM(E13:E15),5) -> 51619 | G16: =ROUND(SUM(G13:G15),5) -> 130232 | I16: -78613 | K16: -0.60364
B17: Total Liabilities | E17: =ROUND(E12+E16,5) -> 51619 | G17: =ROUND(G12+G16,5) -> 130232 | I17: -78613 | K17: -0.60364
B18: Equity | E18: 1774943 | G18: 1587790 | I18: 187153 | K18: 0.11787
A19: TOTAL LIABILITIES & EQUITY | E19: =ROUND(E11+SUM(E17:E18),5) -> 1826562 | G19: =ROUND(G11+SUM(G17:G18),5) -> 1718022 | I19: 108540 | K19: 0.06318
